bitfinex/quotes_SOLUSD_20220227
["timestamp","ask_amount","ask_price","bid_price","bid_amount"]
[1645979932886,23.1468,89.077,89.002,6.0]
[1645979933088,23.1468,89.077,89.003,0.25]
[1645979933287,23.1468,89.077,89.003,24.5883]
[1645979933488,23.1468,89.077,89.004,2.5217417]
[1645979933688,23.1468,89.077,89.005,0.25]
[1645979934490,23.1468,89.077,89.01,16.8533]
[1645979934690,23.1468,89.077,89.011,14.91819485]
[1645979934895,4.492,89.095,89.011,14.91819485]
[1645979935094,500.0,89.103,89.012,3.12194039]
[1645979935391,500.0,89.103,89.013,6.25]
[1645979935590,500.0,89.103,89.021,2.39567809]
[1645979935790,500.0,89.103,89.013,19.44332057]
[1645979935791,26.05667004,89.102,89.03,16.18]
[1645979935992,26.05667004,89.102,89.04,16.18]
[1645979936191,26.05667004,89.102,89.041,8.56930426]
[1645979936691,26.05667004,89.102,89.041,13.05930426]
[1645979936891,26.05667004,89.102,89.041,6.25]
[1645979937091,26.05667004,89.102,89.041,0.25]
[1645979937292,26.05667004,89.102,89.036,4.74]
[1645979937495,26.05667004,89.102,89.05,16.8455]
[1645979937691,26.05667004,89.102,89.051,12.536005]
[1645979940397,26.05667004,89.102,89.051,6.25]
[1645979940597,1.71047721,89.101,89.03,16.849]
[1645979940796,4.491,89.1,89.011,4.491]
[1645979940998,44.82335174,89.1,88.992,32.24308135]
[1645979941199,23.1461131,89.099,88.993,8.61911735]
[1645979941498,28.47992745,89.098,88.995,2.37152692]
[1645979941698,1.52539907,89.097,88.995,2.37152692]
[1645979941896,4.492,89.096,88.996,0.25]
[1645979942096,1.5040044,89.095,88.996,0.25]
[1645979942297,16.18,89.08,88.996,0.25]
[1645979942498,22.2398427,89.078,88.996,0.25]
[1645979942696,6.25535675,89.077,88.996,0.25]
[1645979943196,9.00214596,89.077,88.995,2.37152692]
[1645979943396,2.74678921,89.076,88.996,6.0]
[1645979943596,4.492,89.075,88.996,6.0]
[1645979944197,4.492,89.076,88.996,6.0]
[1645979944398,6.25535675,89.077,88.996,6.0]
[1645979944598,2.74678921,89.076,88.994,35.2086092]
[1645979945001,4.492,89.075,88.995,0.25]
[1645979945199,2.74678921,89.076,88.995,2.74910954]
[1645979945398,2.74678921,89.074,88.995,2.74910954]
[1645979945599,4.492,89.073,88.995,2.74910954]
[1645979945800,4.492,89.073,88.996,6.0]
[1645979946002,2.74678921,89.074,88.997,0.25]
[1645979946202,4.492,89.073,88.997,0.25]
[1645979946910,4.492,89.073,88.995,0.25]
[1645979947108,2.74678921,89.074,88.995,0.25]
[1645979947512,2.74678921,89.074,88.995,6.25]
[1645979948110,1.76335675,89.077,88.995,8.82270381]
[1645979948309,1.76335675,89.077,89.0,16.8548]
[1645979948509,1.76335675,89.077,89.001,0.25]
[1645979948909,1.76335675,89.077,89.001,6.25]
[1645979950013,4.492,89.076,89.001,6.25]
[1645979950711,1.76335675,89.077,89.001,6.25]
[1645979952212,4.492,89.076,89.001,6.25]
[1645979952613,1.76335675,89.077,89.001,6.25]
[1645979952812,2.74678921,89.076,89.001,6.25]
[1645979953413,2.74678921,89.076,89.001,0.25]
[1645979953612,4.492,89.075,89.001,0.25]
[1645979954012,2.74678921,89.074,89.001,6.25]
[1645979958518,4.492,89.073,89.001,0.25]
[1645979958718,4.492,89.073,88.994,0.25]
[1645979958920,2.74678921,89.072,88.994,0.25]
[1645979959218,1.35163027,89.069,88.994,0.25]
[1645979959419,4.492,89.068,88.994,0.25]
[1645979959620,7.23878921,89.068,88.994,0.25]
[1645979959819,2.74678921,89.067,88.994,0.25]
[1645979960018,4.492,89.066,88.994,0.25]
[1645979961020,23.8173,89.067,88.994,0.25]
[1645979962019,23.8173,89.067,88.994,6.25]
[1645979962420,23.8173,89.067,88.994,0.25]
[1645979962620,4.492,89.066,88.994,0.25]
[1645979962823,23.8173,89.067,88.994,0.25]
[1645979963021,23.8173,89.067,88.994,6.25]
[1645979963423,23.8173,89.067,88.994,0.25]
[1645979963823,23.8173,89.067,88.994,6.25]
[1645979964043,4.492,89.066,88.994,0.25]
[1645979965843,25.8210498,89.064,88.994,0.25]
[1645979966043,5.92138854,89.063,88.994,0.25]
[1645979966242,8.66817775,89.063,88.994,0.25]
[1645979968245,2.74678921,89.062,88.987,0.25]
[1645979968444,4.493,89.061,88.987,0.25]
[1645979968844,2.74678921,89.06,88.987,0.25]
[1645979969043,4.493,89.059,88.987,0.25]
[1645979969544,2.74678921,89.058,88.987,0.25]
[1645979974147,24.6146,89.057,88.987,0.25]
[1645979974346,1.81635226,89.056,88.987,0.25]
[1645979976252,16.8637,89.05,88.956,5.86808473]
[1645979976449,16.18,89.04,88.958,30.1791]
[1645979976648,1.73085595,89.038,88.958,24.1791]
[1645979976849,4.494,89.037,88.958,24.1791]
[1645979977250,1.68382424,89.035,88.958,24.1791]
[1645979977549,1.68382424,89.035,88.948,27.2745336]
[1645979977550,16.18,89.03,88.948,27.2745336]
[1645979977749,6.22780865,89.029,88.948,27.2745336]
[1645979977951,8.97459786,89.029,88.949,0.25]
[1645979978250,8.97459786,89.029,88.94,16.8637]
[1645979978251,2.74678921,89.028,88.94,16.8637]
[1645979978452,6.22922516,89.027,88.921,2.37121284]
[1645979978650,6.22922516,89.027,88.921,2.94467999]
[1645979978854,4.29982286,89.026,88.922,6.0]
[1645979979052,4.495,89.025,88.922,6.0]
[1645979979252,7.24178921,89.025,88.931,33.19106121]
[1645979979453,16.8696,89.02,88.946,8.06995404]
[1645979979651,4.495,89.019,88.947,0.25]
[1645979979852,25.8210498,89.018,88.947,0.25]
[1645979980052,5.92418137,89.017,88.923,2.72435701]
[1645979980359,1.45497678,89.015,88.924,6.0]
[1645979980555,26.13218921,89.016,88.924,6.0]
[1645979980754,4.495,89.015,88.924,6.0]
[1645979980953,2.74678921,89.014,88.939,32.88420651]
[1645979981153,4.495,89.013,88.94,24.1049]
[1645979981457,2.74678921,89.014,88.941,2.7739736]
[1645979982552,23.3854,89.016,88.941,2.7739736]
[1645979982755,23.3854,89.016,88.942,6.0]
[1645979982954,23.3854,89.016,88.943,0.25]
[1645979983154,23.3854,89.016,88.944,6.0]
[1645979983352,23.3854,89.016,88.945,1.22577828]
[1645979983554,23.3854,89.016,88.946,6.0]
[1645979983754,23.3854,89.016,88.947,0.25]
[1645979984154,23.3854,89.016,88.947,0.95793541]
[1645979984455,23.3854,89.016,88.95,16.8625]
[1645979984655,23.3854,89.016,88.951,0.25]
[1645979984854,23.3854,89.016,88.951,9.35346669]
[1645979985055,25.8210498,89.018,88.951,9.35346669]
[1645979985459,25.8210498,89.018,88.951,6.25]
[1645979985657,25.8210498,89.018,88.951,0.25]
[1645979985957,25.8210498,89.018,88.947,0.95793541]
[1645979986359,25.8210498,89.018,88.96,16.8607]
[1645979986661,25.8210498,89.018,88.962,8.37680874]
[1645979986859,25.8210498,89.018,88.963,6.25]
[1645979992970,1.5562634,89.017,88.962,8.37680874]
[1645979993570,23.7421,89.016,88.962,8.37680874]
[1645979993770,1.79705912,89.015,88.965,0.70438025]
[1645979994772,23.7421,89.016,88.965,0.70438025]
[1645979995979,1.64994859,89.015,88.965,0.70438025]
[1645979996377,23.7421,89.016,88.965,0.70438025]
[1645979996779,1.44703337,89.015,88.965,0.70438025]
[1645979998603,1.44703337,89.015,88.959,0.95398532]
[1645980000304,23.7421,89.016,88.959,0.95398532]
[1645980001907,28.75926009,89.015,88.959,0.70398532]
[1645980002106,6.18969433,89.014,88.959,0.70398532]
[1645980002306,34.94895442,89.014,88.959,0.70398532]
[1645980002510,30.45395442,89.014,88.959,0.70398532]
[1645980003707,30.45395442,89.014,88.95,0.25]
[1645980004108,4.44148354,89.014,88.95,0.25]
[1645980005112,4.44148354,89.014,88.95,6.25]
[1645980005310,4.44148354,89.014,88.95,0.25]
[1645980006914,2.74678921,89.013,88.95,0.25]
[1645980008614,2.74678921,89.013,88.952,0.70694772]
[1645980011919,4.495,89.012,88.952,0.70694772]
[1645980012422,2.74678921,89.011,88.952,0.70694772]
[1645980013021,4.495,89.01,88.952,0.70694772]
[1645980013223,37.5463,89.01,88.952,0.70694772]
[1645980013426,4.35736745,89.009,88.952,0.70694772]
[1645980013623,4.495,89.008,88.945,1.68233096]
[1645980013824,32.88521786,89.008,88.945,1.68233096]
[1645980014024,4.39290296,89.007,88.945,1.68233096]
[1645980014225,4.495,89.006,88.945,1.68233096]
[1645980014425,20.72793495,89.004,88.945,1.68233096]
[1645980014625,4.495,89.003,88.945,1.68233096]
[1645980014826,6.16263704,89.003,88.945,1.68233096]
[1645980015027,2.74678921,89.002,88.945,1.68233096]
[1645980015225,4.495,89.001,88.945,1.68233096]
[1645980015626,2.74678921,89.0,88.945,1.68233096]
[1645980015827,4.495,88.999,88.945,1.68233096]
[1645980016025,5.87371362,88.999,88.945,1.68233096]
[1645980016227,2.74678921,88.998,88.945,1.68233096]
[1645980016427,4.495,88.997,88.945,1.68233096]
[1645980016626,7.16543683,88.998,88.945,1.68233096]
[1645980016826,2.74678921,88.996,88.945,1.68233096]
[1645980017227,4.62139593,88.997,88.945,1.68233096]
[1645980017427,2.74678921,88.996,88.945,1.68233096]
[1645980018031,22.9866,88.995,88.945,1.68233096]
[1645980018829,1.46468345,88.994,88.947,0.70793541]
[1645980019029,4.495,88.993,88.947,0.70793541]
[1645980019230,7.24178921,88.993,88.947,0.70793541]
[1645980020928,33.0552,88.99,88.947,0.70793541]
[1645980021129,6.14801342,88.989,88.947,0.70793541]
[1645980021730,25.8210498,88.987,88.947,0.70793541]
[1645980021931,4.496,88.986,88.947,0.70793541]
[1645980022132,8.83735343,88.986,88.947,0.70793541]
[1645980022633,6.09056422,88.986,88.947,0.70793541]
[1645980022834,24.6256,88.985,88.947,0.70793541]
[1645980023034,16.18,88.98,88.947,0.70793541]
[1645980023336,4.496,88.979,88.947,0.70793541]
[1645980023534,7.24278921,88.979,88.947,0.70793541]
[1645980023734,2.74678921,88.978,88.947,0.70793541]
[1645980023935,4.496,88.977,88.947,0.70793541]
[1645980024336,2.74678921,88.976,88.947,0.70793541]
[1645980024536,4.496,88.975,88.947,0.70793541]
[1645980024737,27.6364,88.975,88.947,0.70793541]
[1645980024937,23.1404,88.975,88.947,0.70793541]
[1645980026137,4.496,88.974,88.947,0.70793541]
[1645980026337,20.72793495,88.973,88.947,0.70793541]
[1645980026539,4.496,88.972,88.947,0.70793541]
[1645980027338,20.72793495,88.973,88.947,0.70793541]
[1645980028045,4.496,88.972,88.947,0.70793541]
[1645980029747,23.1404,88.975,88.947,0.70793541]
[1645980030349,30.84888089,88.974,88.947,0.70793541]
[1645980030750,30.84888089,88.974,88.94,6.04248672]
[1645980030950,30.84888089,88.974,88.905,0.25]
[1645980032070,30.84888089,88.974,88.906,3.00135042]
[1645980032269,30.84888089,88.974,88.907,6.25]
[1645980034471,30.84888089,88.974,88.949,0.70754032]
[1645980035070,4.496,88.973,88.949,0.70754032]
[1645980036674,35.34488089,88.974,88.949,0.70754032]
[1645980037675,30.84888089,88.974,88.949,0.70754032]
[1645980039180,30.84888089,88.974,88.925,10.30270079]
[1645980041080,4.496,88.973,88.925,10.30270079]
[1645980042080,35.34488089,88.974,88.925,10.30270079]
[1645980043581,35.34488089,88.974,88.927,0.71188727]
[1645980045083,30.84888089,88.974,88.927,0.71188727]
[1645980045885,30.84888089,88.974,88.9,16.8733]
[1645980045886,16.879,88.97,88.88,16.8761]
[1645980046086,16.879,88.97,88.827,17.1356]
[1645980046087,16.18,88.96,88.803,72.3028]
[1645980046290,202.3,88.94,88.804,45.5199]
[1645980046489,16.18,88.93,88.804,45.5199]
[1645980046686,90.0,88.919,88.804,45.5199]
[1645980046888,4.499,88.918,88.828,30.41051298]
[1645980047092,16.8927,88.91,88.828,30.41051298]
[1645980047289,16.18,88.9,88.828,30.41051298]
[1645980047489,30.84888089,88.898,88.842,6.14819725]
[1645980047688,6.29376195,88.897,88.842,6.14819725]
[1645980047892,31.79576617,88.897,88.842,6.14819725]
[1645980048093,4.41339896,88.896,88.842,6.14819725]
[1645980048294,6.32187572,88.895,88.842,6.14819725]
[1645980048493,16.18,88.89,88.842,6.14819725]
[1645980048695,1.86558651,88.889,88.842,6.14819725]
[1645980049194,1.86558651,88.889,88.804,45.5199]
[1645980049394,1.86558651,88.889,88.805,6.25]
[1645980049595,29.06554109,88.889,88.805,6.25]
[1645980049794,2.01840007,88.888,88.805,6.25]
[1645980049995,16.18,88.89,88.805,6.25]
[1645980050197,16.18,88.89,88.849,34.80839631]
[1645980050797,16.18,88.89,88.863,1.75031392]
[1645980051499,16.18,88.89,88.81,16.889]
[1645980051700,16.18,88.89,88.811,6.25]
[1645980051901,1.79424336,88.889,88.811,6.25]
[1645980052301,1.79424336,88.889,88.842,33.17714585]
[1645980053703,1.79424336,88.889,88.858,3.38156438]
[1645980054111,6.29424336,88.889,88.858,3.38156438]
[1645980054307,6.29424336,88.889,88.811,6.25]
[1645980054704,4.5,88.889,88.811,6.25]
[1645980054905,16.18,88.89,88.811,6.25]
[1645980055206,2.09829769,88.889,88.845,30.98782548]
[1645980055406,4.5,88.888,88.811,6.25]
[1645980056404,4.5,88.888,88.845,31.80840902]
[1645980056807,4.5,88.888,88.811,6.25]
[1645980057817,4.5,88.888,88.836,27.77365347]
[1645980059719,6.59829769,88.889,88.836,27.77365347]
[1645980060723,6.59829769,88.889,88.85,8.78505676]
[1645980061021,2.09829769,88.889,88.85,8.78505676]
[1645980061222,2.09829769,88.889,88.811,0.25]
[1645980062223,6.59829769,88.889,88.839,35.778983]
[1645980063322,2.09829769,88.889,88.839,35.778983]
[1645980063522,16.18,88.89,88.804,45.5199]
[1645980063722,2.07786729,88.887,88.804,45.5199]
[1645980063924,4.502,88.886,88.804,45.5199]
[1645980064323,1.74435624,88.884,88.804,45.5199]
[1645980064525,16.18,88.88,88.805,32.04228797]
[1645980064724,6.46004163,88.879,88.805,32.04228797]
[1645980066525,1.95804163,88.879,88.806,0.25]
[1645980066825,1.95804163,88.879,88.805,32.04228797]
[1645980067027,4.502,88.878,88.805,32.04228797]
[1645980067425,4.502,88.878,88.806,0.25]
[1645980070728,4.502,88.878,88.805,32.04228797]
[1645980070930,29.17346495,88.878,88.805,32.04228797]
[1645980071130,1.80866048,88.877,88.805,32.04228797]
[1645980071330,4.502,88.876,88.805,32.04228797]
[1645980072131,2.74678921,88.875,88.805,32.04228797]
[1645980072330,4.502,88.874,88.805,32.04228797]
[1645980072629,16.18,88.87,88.805,32.04228797]
[1645980072839,35.35088089,88.869,88.805,32.04228797]
[1645980073037,1.5964082,88.868,88.805,32.04228797]
[1645980073237,4.502,88.867,88.782,23.9371]
[1645980073442,28.2796,88.867,88.783,0.25]
[1645980073639,1.64522072,88.866,88.783,0.25]
[1645980073839,4.503,88.865,88.783,0.25]
[1645980074041,16.18,88.86,88.783,0.25]
[1645980074246,4.503,88.859,88.783,27.85887223]
[1645980074447,9.17977034,88.859,88.783,27.85887223]
[1645980074649,31.58648921,88.859,88.783,27.85887223]
[1645980074846,40.61713217,88.858,88.783,27.85887223]
[1645980075046,6.22270688,88.857,88.783,27.85887223]
[1645980075248,21.99017697,88.857,88.783,27.85887223]
[1645980075446,20.3966306,88.855,88.783,27.85887223]
[1645980075645,16.9016,88.85,88.783,27.85887223]
[1645980075847,30.84888089,88.839,88.783,27.85887223]
[1645980076048,4.503,88.838,88.783,27.85887223]
[1645980076247,6.06010637,88.838,88.783,27.85887223]
[1645980076647,2.74678921,88.837,88.783,27.85887223]
[1645980076847,4.503,88.836,88.783,27.85887223]
[1645980077251,2.74678921,88.835,88.75,23.9599]
[1645980077552,1.82294038,88.829,88.751,6.25]
[1645980077953,2.74678921,88.828,88.751,6.25]
[1645980078152,2.02069018,88.826,88.751,6.25]
[1645980078356,20.3966306,88.825,88.752,30.42743291]
[1645980078553,6.28924469,88.824,88.753,6.0]
[1645980079155,2.74678921,88.823,88.753,6.0]
[1645980079357,4.503,88.822,88.752,30.42743291]
[1645980080354,4.503,88.823,88.752,30.42743291]
[1645980081756,6.28924469,88.824,88.752,30.42743291]
[1645980082359,20.3966306,88.825,88.753,0.25]
[1645980084081,1.64215521,88.824,88.753,0.25]
[1645980084475,26.38145521,88.824,88.753,0.25]
[1645980084675,2.08811795,88.823,88.753,0.25]
[1645980084877,24.7393,88.824,88.753,0.25]
[1645980087677,1.62416839,88.823,88.753,0.25]
[1645980088980,4.503,88.823,88.76,16.899]
[1645980089180,25.58877284,88.848,88.761,6.25]
[1645980089380,24.0604,88.848,88.762,6.0]
[1645980089580,24.0233,88.865,88.761,0.25]
[1645980089581,4.503,88.862,88.766,16.7391]
[1645980089880,25.78362375,88.863,88.768,6.1370556]
[1645980090082,4.503,88.862,88.769,6.25]
[1645980090481,4.503,88.862,88.78,16.8953]
[1645980090680,4.503,88.862,88.782,26.51242107]
[1645980090881,4.503,88.862,88.783,6.25]
[1645980091682,25.78362375,88.863,88.783,6.25]
[1645980092281,4.503,88.862,88.783,6.25]
[1645980092481,25.78362375,88.863,88.79,16.8936]
[1645980092682,6.49635543,88.862,88.791,0.25]
[1645980092880,9.24314464,88.862,88.791,0.25]
[1645980093279,9.24314464,88.862,88.782,26.51242107]
[1645980093280,24.15797857,88.861,88.782,26.51242107]
[1645980093480,16.18,88.85,88.782,26.51242107]
[1645980093680,27.19575555,88.848,88.782,26.51242107]
[1645980093881,6.22136466,88.847,88.782,26.51242107]
[1645980094280,2.74678921,88.846,88.782,26.51242107]
[1645980094481,4.503,88.845,88.782,26.51242107]
[1645980094881,2.74678921,88.845,88.782,26.51242107]
[1645980098185,4.503,88.844,88.782,26.51242107]
[1645980098786,4.503,88.846,88.782,26.51242107]
[1645980102688,4.503,88.846,88.825,0.48964295]
[1645980104492,1.71836466,88.847,88.825,0.48964295]
[1645980105193,4.502,88.846,88.825,0.48964295]
[1645980107998,6.22036466,88.847,88.825,0.48964295]
[1645980108295,1.71836466,88.847,88.825,0.48964295]
[1645980118125,4.502,88.846,88.825,0.48964295]
[1645980118523,4.502,88.846,88.784,6.0]
[1645980118725,4.502,88.846,88.783,24.9708]
[1645980118924,11.602,88.846,88.783,24.9708]
[1645980119124,2.10171489,88.845,88.783,24.9708]
[1645980119327,4.503,88.844,88.783,24.9708]
[1645980120231,28.08370853,88.844,88.783,24.9708]
[1645980120528,2.09662764,88.843,88.783,24.9708]
[1645980120730,4.503,88.842,88.783,24.9708]
[1645980120928,28.08370853,88.842,88.783,24.9708]
[1645980121128,1.8598493,88.841,88.783,24.9708]
[1645980121330,4.503,88.84,88.783,24.9708]
[1645980121827,1.54259042,88.838,88.783,24.9708]
[1645980122029,4.503,88.837,88.783,24.9708]
[1645980122328,1.54259042,88.838,88.783,24.9708]
[1645980125033,4.503,88.837,88.783,24.9708]
[1645980127834,1.54259042,88.838,88.783,24.9708]
[1645980128234,4.503,88.837,88.783,24.9708]
[1645980128437,1.54259042,88.838,88.783,24.9708]
[1645980130239,4.503,88.837,88.779,0.22861928]
[1645980131039,1.54259042,88.838,88.779,0.22861928]
[1645980131440,4.503,88.837,88.779,0.22861928]
[1645980132839,4.503,88.837,88.763,0.25]
[1645980133441,24.763,88.839,88.77,16.8966]
[1645980133642,24.763,88.839,88.771,25.1404]
[1645980133840,24.763,88.839,88.771,27.88718921]
[1645980134242,24.763,88.839,88.772,2.74678921]
[1645980134441,24.763,88.839,88.773,0.25]
[1645980134641,24.763,88.839,88.781,6.56947956]
[1645980134843,24.763,88.839,88.782,0.25]
[1645980135043,25.46188774,88.848,88.782,0.25]
[1645980135243,25.46188774,88.848,88.782,25.103]
[1645980137945,25.46188774,88.848,88.783,6.0]
[1645980138146,25.46188774,88.848,88.784,0.25]
[1645980138850,1.82121927,88.856,88.784,6.25]
[1645980139049,6.59669261,88.863,88.784,0.25]
[1645980139249,4.503,88.863,88.79,16.8934]
[1645980139452,4.503,88.879,88.8,16.18]
[1645980139647,4.503,88.879,88.801,30.2899]
[1645980139849,26.99196151,88.878,88.81,16.18]
[1645980140048,26.99196151,88.878,88.811,6.25]
[1645980140448,26.99196151,88.878,88.812,15.1407089]
[1645980140648,26.99196151,88.878,88.82,16.8866]
[1645980140948,26.99196151,88.878,88.822,11.1626287]
[1645980141249,26.99196151,88.878,88.823,6.25]
[1645980141648,26.99196151,88.878,88.824,2.74678921]
[1645980141848,26.99196151,88.878,88.825,6.25]
[1645980142250,26.99196151,88.878,88.826,2.74678921]
[1645980142549,26.99196151,88.878,88.83,16.8863]
[1645980142751,26.99196151,88.878,88.831,6.25]
[1645980142951,26.99196151,88.878,88.831,8.99678921]
[1645980143351,26.99196151,88.878,88.832,2.74678921]
[1645980143551,26.99196151,88.878,88.833,6.25]
[1645980143957,26.99196151,88.878,88.834,2.74678921]
[1645980144154,26.99196151,88.878,88.836,25.89150276]
[1645980144355,26.99196151,88.878,88.837,6.25]
[1645980145055,1.68826181,88.877,88.837,0.25]
[1645980145554,1.68826181,88.877,88.835,0.25]
[1645980146056,1.68826181,88.877,88.82,2.74678921]
[1645980146256,29.0429,88.876,88.811,23.6171]
[1645980146459,1.52282201,88.875,88.811,23.6171]
[1645980146655,4.502,88.874,88.811,23.6171]
[1645980147657,2.74678921,88.873,88.779,2.74678921]
[1645980147860,16.18,88.86,88.772,24.2706]
[1645980148058,2.00681896,88.858,88.772,24.2706]
[1645980148460,4.503,88.857,88.772,24.2706]
[1645980148663,23.76390703,88.856,88.787,25.90448951]
[1645980148861,6.0344594,88.855,88.788,0.25]
[1645980149868,1.5314594,88.855,88.788,0.25]
[1645980150369,4.503,88.854,88.788,0.25]
[1645980150769,1.5314594,88.855,88.788,0.25]
[1645980153989,23.76390703,88.856,88.788,0.25]
[1645980154390,1.98818327,88.885,88.788,0.25]
[1645980154589,1.98818327,88.885,88.79,16.18]
[1645980154790,1.98818327,88.885,88.791,6.25]
[1645980154990,4.502,88.884,88.791,6.25]
[1645980155190,4.502,88.884,88.792,2.74678921]
[1645980155390,2.0665377,88.882,88.793,6.0]
[1645980155790,2.0665377,88.882,88.811,11.14964195]
[1645980156391,16.18,88.88,88.811,11.14964195]
[1645980156795,26.19447758,88.879,88.811,11.14964195]
[1645980156991,1.66920541,88.878,88.811,11.14964195]
[1645980157193,4.502,88.877,88.811,11.14964195]
[1645980157393,6.17120541,88.878,88.811,11.14964195]
[1645980157593,8.91799462,88.878,88.811,11.14964195]
[1645980159595,6.17120541,88.878,88.811,11.14964195]
[1645980160595,1.66920541,88.878,88.811,11.14964195]
[1645980160795,4.502,88.877,88.811,11.14964195]
[1645980161597,1.66920541,88.878,88.811,11.14964195]
[1645980164100,4.502,88.881,88.811,11.14964195]
[1645980164300,1.61882114,88.899,88.812,10.502]
[1645980165401,4.502,88.898,88.812,6.0]
[1645980166703,4.501,88.899,88.812,6.0]
[1645980166903,4.501,88.908,88.82,16.8855]
[1645980167304,4.501,88.908,88.821,4.501]
[1645980167504,31.90257948,88.907,88.821,4.501]
[1645980167705,1.61112359,88.906,88.821,4.501]
[1645980168102,1.61112359,88.906,88.82,16.8855]
[1645980168303,1.68799057,88.933,88.82,49.6094]
[1645980168504,48.31201143,88.953,88.86,16.8782]
[1645980168705,1.84988897,88.952,88.86,16.8782]
[1645980168903,23.22980858,88.952,88.86,16.8782]
[1645980169103,1.80046031,88.951,88.861,4.499]
[1645980169304,31.63760002,88.95,88.862,25.90448951]
[1645980169504,1.54091974,88.949,88.863,4.499]
[1645980169706,4.499,88.948,88.862,25.90448951]
[1645980169904,6.49701722,88.948,88.862,25.90448951]
[1645980170104,2.74678921,88.947,88.862,25.90448951]
[1645980170304,4.499,88.946,88.862,25.90448951]
[1645980170707,2.74678921,88.945,88.862,25.90448951]
[1645980170909,2.74678921,88.945,88.863,4.499]
[1645980171107,1.99801722,88.948,88.863,4.499]
[1645980171706,1.99801722,88.948,88.862,25.90448951]
[1645980171707,4.499,88.947,88.862,25.90448951]
[1645980172107,1.99801722,88.948,88.863,4.499]
[1645980172309,1.99801722,88.948,88.862,25.90448951]
[1645980172310,4.499,88.947,88.862,25.90448951]
[1645980172509,1.99801722,88.948,88.87,16.8764]
[1645980172709,1.99801722,88.948,88.871,4.498]
[1645980173107,1.99801722,88.948,88.871,2.74678921]
[1645980173907,1.99801722,88.948,88.87,16.8764]
[1645980175108,4.74480643,88.948,88.87,16.8764]
[1645980175910,1.99801722,88.948,88.871,0.25]
[1645980177014,1.99801722,88.948,88.872,4.498]
[1645980177313,1.99801722,88.948,88.873,0.25]
[1645980177516,1.99801722,88.948,88.874,4.498]
[1645980177715,1.99801722,88.948,88.875,0.25]
[1645980178114,31.63760002,88.95,88.875,0.25]
[1645980178315,1.8924954,88.949,88.875,0.25]
[1645980178914,31.63760002,88.95,88.864,0.25]
[1645980179116,31.63760002,88.95,88.865,4.499]
[1645980179315,31.63760002,88.95,88.866,0.25]
[1645980179515,31.63760002,88.95,88.867,4.499]
[1645980179716,31.63760002,88.95,88.868,0.25]
[1645980179915,31.63760002,88.95,88.869,4.498]
[1645980180120,31.63760002,88.95,88.87,0.25]
[1645980180317,31.63760002,88.95,88.871,4.498]
[1645980180518,31.63760002,88.95,88.872,0.25]
[1645980180715,31.63760002,88.95,88.88,16.18]
[1645980180916,31.63760002,88.95,88.882,11.14964195]
[1645980181117,31.63760002,88.95,88.883,4.748]
[1645980181516,31.63760002,88.95,88.883,7.49478921]
[1645980181717,31.63760002,88.95,88.884,2.74678921]
[1645980181918,31.63760002,88.95,88.885,4.748]
[1645980182320,31.63760002,88.95,88.886,2.74678921]
[1645980182520,31.63760002,88.95,88.887,4.748]
[1645980182925,31.63760002,88.95,88.888,2.74678921]
[1645980183121,31.63760002,88.95,88.889,0.25]
[1645980183519,16.18,88.99,88.89,7.24478921]
[1645980183722,40.0444,89.0,88.891,22.8803]
[1645980183922,6.22526689,88.999,88.892,4.497]
[1645980184125,6.22526689,88.999,88.893,0.25]
[1645980184326,6.22526689,88.999,88.894,4.497]
[1645980184527,32.93417148,88.998,88.895,0.25]
[1645980184728,6.5984006,88.997,88.895,0.25]
[1645980184926,6.5984006,88.997,88.896,2.74678921]
[1645980185125,6.5984006,88.997,88.9,16.18]
[1645980185339,6.5984006,88.997,88.901,0.25]
[1645980185544,6.5984006,88.997,88.901,2.99678921]